Cogmind - Beta 10.2 @@@ ROGUE MODE // 2021.04.04 @ 22:15:14 Player: ChromeKnight Result: Destroyed by as-93485 with Assembled Heavy Rifle Performance ------------- Evolutions (0) 0 Regions Visited (2) 400 Robots Destroyed (6) 30 Value Destroyed (127) 127 Prototype IDs (0) 0 Alien Tech Used (0) 0 Bonus (0) 0 TOTAL SCORE: 557 Bonus ------- None Cogmind --------- Core Integrity 0/250 Matter 230/300 Energy 98/100 System Corruption 8% Temperature Cool (2) Movement Core (50) Location -10/Mines Parts ------- > --- POWER (1) -------- (None) > --- PROPULSION (2) --- (None) > --- UTILITY (2) ------ (None) > --- WEAPON (2) ------- (None) > --- INVENTORY (4) ---- Ion Engine Small Laser Light Assault Rifle Peak State ------------ > --- POWER ------------ Ion Engine > --- PROPULSION ------- Compact Wheel Compact Wheel > --- UTILITY ---------- Small Storage Unit Tractor Beam > --- WEAPON ----------- Assault Rifle Light Cannon > --- INVENTORY -------- Hover Unit Hover Unit Small Laser Light Assault Rifle [Rating: 7] Favorites ----------- Power Ion Engine Engine Ion Engine Power Core Light Nuclear Core Propulsion Compact Wheel Wheel Compact Wheel Hover Unit Hover Unit Utility Small Storage Unit Device Tractor Beam Storage Small Storage Unit Weapon Assault Rifle Ballistic Gun Assault Rifle Ballistic Cannon Light Cannon Build | -11 -10 -10 ------- Run | Scr Mat Min Slots Evolved . | . . . Power . | . . . Propulsion . | . . . Utility . | . . . Weapon . | . . . Parts Attached 12 | 6 2 4 Power 3 | 1 . 2 Engine 2 | 1 . 1 Core 1 | . . 1 Reactor . | . . . Propulsion 4 | 2 . 2 Treads . | . . . Leg . | . . . Wheel 2 | 2 . . Hover 2 | . . 2 Flight . | . . . Utility 2 | 1 1 . Device 1 | . 1 . Storage 1 | 1 . . Processor . | . . . Hackware . | . . . Protection . | . . . Artifact . | . . . Weapon 3 | 2 1 . Energy Gun . | . . . Energy Cannon . | . . . Ballistic Gun 2 | 2 . . Ballistic Cannon 1 | . 1 . Launcher . | . . . Special Weapon . | . . . Impact Weapon . | . . . Slashing Weapon . | . . . Piercing Weapon . | . . . Special Melee Weapon . | . . . Unidentified Prototypes . | . . . Parts Lost 8 | . . 8 Power 2 | . . 2 Propulsion 4 | . . 4 Utility . | . . . Weapon 2 | . . 2 Highest Loss Streak 7 | . . 7 Average Slot Usage (%) 80 | . 85 73 Engine 13 | . 14 12 Wheel 23 | . 28 18 Storage 14 | . 14 14 Ballistic Gun 14 | . 15 12 Ballistic Cannon 13 | . 12 14 Naked Turns . | . . . Heaviest Build 15 | 12 15 14 Greatest Support 32 | 32 32 32 Greatest Overweight (x) 3 | . . 3 Average Overweight (x) . | . . . Largest Inventory Capacity 6 | 6 6 6 Average Capacity 5 | 4 6 5 Most Carried 6 | 1 4 6 Average Carried 3 | . 3 5 Final Capacity 6 | 6 6 4 Final Carried 4 | 1 4 3 Class Distribution -------------------- 100% | Mutant Dominant Class ---------------- Mutant | -10/Materials Mutant | -10/Mines Resources | -11 -10 -10 ----------- Run | Scr Mat Min Matter Collected 363 | 182 124 57 Remotely . | . . . Salvage Created 150 | . 9 141 Parts 10 | . 3 7 Haulers Intercepted . | . . . Recyclers Shooed . | . . . Parts Field Recycled . | . . . Retrieved Matter . | . . . Parts Self-Destructed . | . . . Prevented . | . . . Kills | -11 -10 -10 ------- Run | Scr Mat Min Combat Hostiles Destroyed 6 | . . 6 Guns 4 | . . 4 Cannons 2 | . . 2 Classes Destroyed 4 | . 1 3 Operator 1 | . 1 . Swarmer 3 | . . 3 Grunt 2 | . . 2 Assembled 1 | . . 1 Best Kill Streak 3 | . 1 3 Combat Bots Only 3 | . . 3 Max Kills in Single Turn 1 | . 1 1 Gunslinging . | . . . Exploded . | . . . Melee . | . . . Uniques/NPCs Destroyed . | . . . Combat | -11 -10 -10 -------- Run | Scr Mat Min Damage Taken 737 | . . 737 Core 251 | . . 251 Absorbed by Shields . | . . . Core Remaining (%) 100 | 100 . . Volleys Fired 24 | . 5 19 Largest 2 | . 2 2 Hottest 55 | . 55 55 Shots Fired 43 | . 7 36 Gun 19 | . 2 17 Cannon 24 | . 5 19 Launcher . | . . . Special . | . . . Kinetic 43 | . 7 36 Thermal . | . . . Explosive . | . . . Electromagnetic . | . . . Robot Hit Streak 8 | . 2 8 Robot Miss Streak 2 | . . 2 Penetration Max . | . . . Secondary Targets . | . . . Shots Hit Robots 24 | . 2 22 Core Hits 11 | . 1 10 Critical Hits . | . . . Critical Kills . | . . . Critical Parts Destroyed . | . . . Melee Attacks . | . . . Impact . | . . . Slashing . | . . . Piercing . | . . . Sneak Attacks . | . . . Combat Hostiles . | . . . Follow-up Attacks . | . . . Damage Inflicted 325 | . 33 292 Guns 164 | . 13 151 Cannons 161 | . 20 141 Explosions . | . . . Melee . | . . . Ramming . | . . . Kinetic 325 | . 33 292 Thermal . | . . . Explosive . | . . . Electromagnetic . | . . . Impact . | . . . Slashing . | . . . Piercing . | . . . Highest Corruption 7 | . . 7 Average Corruption 4 | . . 4 Corruption Purged . | . . . Overload Shots . | . . . Overflow Damage . | . . . Projectiles . | . . . Explosions . | . . . Melee . | . . . Knockbacks . | . . . Impact . | . . . Kinetic . | . . . Secondary . | . . . Self-Inflicted Damage . | . . . Shots . | . . . Rammed . | . . . Targets Rammed . | . . . Kicked . | . . . Crushed . | . . . Highest Temperature 30 | . 15 30 Average Temperature 15 | . 9 19 Received Heat Transfer 48 | . . 48 Siege Activations . | . . . Robots Corrupted . | . . . Combat Hostiles . | . . . Parts Fried . | . . . Impact Corruptions . | . . . Robots Melted . | . . . Combat Hostiles . | . . . Parts Melted . | . . . Heat Transferred . | . . . Parts Sabotaged . | . . . Parts Stolen . | . . . Parts Stripped . | . . . Power Chain Reactions . | . . . Missiles Intercepted . | . . . Alert | -11 -10 -10 ------- Run | Scr Mat Min Peak Influence 150 | . 27 150 Initial 10 | . . 10 Average 52 | . 23 106 Maximum Alert Level . | . . . Low Security (%) 100 | 100 100 100 Level 1 . | . . . Level 2 . | . . . Level 3 . | . . . Level 4 . | . . . Level 5 . | . . . High Security . | . . . Max Security . | . . . Squads Dispatched . | . . . Investigation . | . . . Extermination . | . . . Reinforcement . | . . . Assault . | . . . Garrison . | . . . Intercept . | . . . Construction Impeded . | . . . Haulers Reinforced . | . . . Stealth | -11 -10 -10 --------- Run | Scr Mat Min Distress Signals . | . . . Communications Jammed . | . . . Distress Signals . | . . . Times Spotted 15 | . 1 14 Peak Tracking Total 9 | . 1 9 Tactical Retreats 2 | . . 2 Traps | -11 -10 -10 ------- Run | Scr Mat Min Traps Triggered . | . . . Indirectly . | . . . Trap Hack Attempts . | . . . Triggered . | . . . Disarmed . | . . . Reprogrammed . | . . . Reused . | . . . Traps Extracted . | . . . Installed . | . . . Triggered . | . . . Machines | -11 -10 -10 ---------- Run | Scr Mat Min Machines Disabled . | . . . Max in Single Turn . | . . . Machines Sabotaged . | . . . Garrisons Compromised . | . . . Overloaded Fab Kills . | . . . Fab Network Shutdowns . | . . . Hacking | -11 -10 -10 --------- Run | Scr Mat Min Machines Accessed 1 | . 1 . Terminals 1 | . 1 . Fabricators . | . . . Repair Stations . | . . . Recycling Units . | . . . Scanalyzers . | . . . Garrison Access . | . . . Total Hacks 2 | . 2 . Successful 1 | . 1 . Failed 1 | . 1 . Catastrophic 1 | . 1 . Database Lockouts . | . . . Manual . | . . . Terminals 2 | . 2 . Fabricators . | . . . Repair Stations . | . . . Recycling Units . | . . . Scanalyzers . | . . . Garrison Access . | . . . Terminal Hacks 1 | . 1 . Security Status 1 | . 1 . Fabricator Hacks . | . . . Repair Station Hacks . | . . . Recycling Unit Hacks . | . . . Scanalyzer . | . . . Garrison Access Hacks . | . . . Unauthorized Hacks . | . . . Terminals . | . . . Fabricators . | . . . Repair Stations . | . . . Recycling Units . | . . . Scanalyzers . | . . . Garrison Access . | . . . Data Cores Recovered . | . . . Used . | . . . Hacking Detections 1 | . 1 . Full Trace Events 1 | . 1 . Feedback Events . | . . . Feedback Blocked . | . . . Robot Schematics Acquired . | . . . Robots Built . | . . . Matter . | . . . Time . | . . . Total Robot Build Rating . | . . . Part Schematics Acquired . | . . . Parts Built . | . . . Matter . | . . . Time . | . . . Total Part Build Rating . | . . . Parts Repaired . | . . . Time . | . . . Parts Recycled . | . . . Recycled Matter . | . . . Retrieved Matter . | . . . Retrieved Components . | . . . Parts Scanalyzed . | . . . Part Schematics Acquired . | . . . Parts Damaged . | . . . Bothacking | -11 -10 -10 ------------ Run | Scr Mat Min Used RIF Installer . | . . . Robots Hacked . | . . . Non-combat . | . . . Combat . | . . . Robot Hacks Applied . | . . . Relay Couplers Released . | . . . Robots Rewired . | . . . Allies Hacked . | . . . Hacks Repelled . | . . . Allies | -11 -10 -10 -------- Run | Scr Mat Min Total Allies . | . . . Largest Group . | . . . Highest-Rated Group . | . . . Highest-Rated Ally . | . . . Total Orders . | . . . Ally Attacks . | . . . Total Damage . | . . . Kills . | . . . Allies Corrupted . | . . . Allies Melted . | . . . Intel | -11 -10 -10 ------- Run | Scr Mat Min Robot Analysis Total . | . . . Derelict Logs Recovered . | . . . Drone Launches . | . . . Drone Recoveries . | . . . Exploration | -11 -10 -10 ------------- Run | Scr Mat Min Turns Passed 428 | 59 203 166 Spaces Moved 331 | 52 186 93 Core 7 | 4 . 3 Treads . | . . . Legs . | . . . Wheels 317 | 48 186 83 Hover 7 | . . 7 Flight . | . . . Fastest Speed 50 | 50 100 60 Average Speed 99 | 96 100 100 Slowest Speed 200 | 100 100 200 Overloaded Moves . | . . . Propulsion Burnouts . | . . . Robots Hopped . | . . . Cave-ins Triggered . | . . . Exploration Rate (%) 20 | 4 25 33 Regions Visited 2 Branch Regions 1 Pre-discovered Areas . | . . . Known Exits Taken . | . . . Unknown Exits Taken 2 | 1 1 . Scrap Searched . | . . . Spaces Dug . | . . . Terrain Destroyed . | . . . Melee . | . . . Projectile . | . . . AOE . | . . . Terrain Rammed . | . . . Walls Destroyed . | . . . Machines Disabled . | . . . Actions | -11 -10 -10 --------- Run | Scr Mat Min Total 384 | 58 196 130 Wait 12 | . . 12 Move 329 | 51 185 93 Hop . | . . . Pick Up 4 | 1 2 1 Fast Attach 8 | 6 2 . Attach 3 | . . 3 Detach 1 | . 1 . Swap 1 | . . 1 Drop 2 | . 1 1 Fire 24 | . 5 19 Melee . | . . . Ram . | . . . Kick . | . . . Crush . | . . . Escape Stasis . | . . . Rewire . | . . . Trap . | . . . Miscellaneous . | . . . Route ------- -11/Scrapyard -10/Materials -10/Mines History --------- Turn | Location | Event 25 | -11/Scrapyard | Discovered new exit (range 16) 60 | -11/Scrapyard | Entered Materials 114 | -10/Materials | Discovered new exit (range 14) 263 | -10/Materials | Entered Mines 302 | -10/Mines | Build established: Mutant 371 | -10/Mines | Assembled infested the area 376 | -10/Mines | Assisted by a Guerilla fighting off Assembled 424 | -10/Mines | Core integrity fell below 50% 429 | -10/Mines | Destroyed by as-93485 with Assembled Heavy Rifle Last Messages --------------- squad. 00374_ T7-I74(h): "I'll hold them off! Go on ahead or try to find another way!" 00376_ R-06 Scavenger collects Flight Unit. 00376_ K-01 Serf collects debris. 00380_ R-06 Scavenger collects Wheel. 00405_ as-68318 destroyed. 00406_ Lgt. Ion Engine destroyed. 00406_ System corrupted by crushing effect (+4). 00406_ Knocked back. 00408_ Com. Wheel destroyed. 00409_ Assault Rifle destroyed. 00420_ Lgt. Cannon destroyed. 00423_ D-53 Grenadier destroyed. 00424_ Hover Unit destroyed. 00426_ Dropped Sml. Storage Unit. 00426_ Lgt. Nuclear Core destroyed. 00426_ System corrupted by crushing effect (+3). 00429_ Hover Unit destroyed. 00429_ System corrupted by crushing effect (+1). Map ----- +----------------------------------------------------+ | ??# ###??????????????? | | ??# ##?????????????? | | ??# """ #####?????????? | | ??# """ ??????? | | ??# """ ?????? | | ??# ?????? | | ??# ### ??????? | | ??## ## ##?## ?????? | | ???###??## ##??# ??????? | | ????????## #???# ??????? | | ????????# #????# ???????? | | ????????# ##?????###???????? | | ????????## ##???????????????? | | ?????????## #####???????????? | | ??????????# #???????????? | | ??????????## #???????????? | | ???????????# #### ##???????????? | | ???????????# ##### ## #????????????? | | ????????#### ## #????????????? | | ???????## ####### ## ###??????????? | | ???????# ###### ## = ?????????? | | ???????# ## ## ?????????? | | ???????# a #= #?????????? | | ???????# a %=% ##????#????? | | ???????## aa #### ### ##???? | | ????????# @a##???# ] !#???? | | ????????# #????#! # #??? | | ????????# #????#### #### [ #?? | | ????????# #???????# #???? #?? | | ???????# ##???????# #????? [ #?? | | ???????# ##???????? #???????##?? | | ???????## #?????????? #??????????? | | ????????###?????????? ###??????????? | | ????????????????????? ?????????????? | | ????????????????????# ?????????????? | | ????????????????????# ?????????????? | | ???????????????????? ?????????????? | | ???????????????????? ?????????????? | | ??????????????????? ?????????????? | | ??????????????????? ??????????????? | | ???????????????????? ??????????????? | | ???????????????????? ??????????????? | | ????????????????????? ??????????????? | | ????????????????????????????????????? | | ????????????????????????????????????? | | ????????????????????????????????????? | | ????????????????????????????????????? | | ????????????????????????????????????? | | ????????????????????????????????????? | | ????????????????????????????????????? | +----------------------------------------------------+ Best States ------------- Heat Dissipation 25 Energy Generation 14 Energy Capacity 250 Matter Stores 300 Matter Capacity 300 Sight Range 16 Terrain Scan Density 10 Evasion (%) 40 Item Schematics ----------------- None Robot Schematics ------------------ None Fabricated ------------ Nothing Alien Tech Used ----------------- None Achievements -------------- None Challenges ------------ None Game ------ Seed TitaniumGuidanceFilter Manual? 0 Play Time 00:05:13 Cumulative 119.5 hours Start 2021.04.04 @ 22:11:39 End 2021.04.04 @ 22:15:14 Sessions 1 Manual Loads 0 Difficulty Rogue Special Mode None Game No. 283 Rogue 130 Adventurer 148 Explorer 5 Win Type - Total 2 Types 2/0/0/0/0/0/0/0/0 Lore% 64 Gallery% 72 Achievement% 55 Wizard Run 0 Options --------- ASCII 0 Keyboard 0 Movement Numpad Keybinds 0 Fullscreen 1 Font 18/CogNarrow Map View 76x50 Tactical HUD 1 Map Filters NONE Filters NONE Steam 1 RUN: 817cb66d-a226-448c-b31e-d1f983511c96